{"text_format":"1","workbook":"xlsx","n_sheets":3,"sheets":["Dashboard","Registro spese","Dati spese personali"],"not_rendered":{"charts":1,"images":0,"macros":1,"external_links":0,"defined_names":7,"comments":0,"pivot_tables":1},"unopened":[],"bounds":{"document_bytes":16777216,"sheet_cells":100000,"rows_first":2000,"rows_last":500,"rows_between":2000,"halvings":0,"cell_chars":16384,"cell_head_chars":4096},"cells_cut":0,"cells_raw":0,"read":"whole","date_system":"1900"}

{"sheet":"Dashboard","index":0,"n_rows":40,"n_cols":7,"rows_kept":40,"cut":false,"hidden":false,"merged":[[36,0,37,5],[39,1,39,5]]}
[]
[null,"Spese per i videogiochi",null,null,null,"vai al registro spese >"]
[]
[null,"Spesa complessiva:",{"$f":"GETPIVOTDATA(\"importo\",'Dati spese personali'!$B$7)","v":1103},null,null,"N.B.: il totale e l'istogramma variano al variare dei filtri applicati (vedi in basso)"]
[]
[]
[]
[]
[]
[]
[]
[]
[]
[]
[]
[]
[]
[]
[]
[]
[]
[]
[]
[]
[]
[]
[]
[]
[]
[null,null,null,null,null,null," "]
[]
[]
[]
[]
[]
[]
["Questo file, elaborato a partire da un preesistente modello di Excel 2013, è stato realizzato e reso disponibile gratuitamente da GamingAddiction \ntwitter: @GamingAdd_slp    blog: www.gamingaddiction.altervista.org    email: gamingaddiction@outlook.it"]
[]
[]
[null,"N.B.: all'interno di ciascun box-filtro è possibile selezionare anche più di una voce alla volta. E' sufficiente tenere premuto Ctrl"]

{"sheet":"Registro spese","index":1,"n_rows":33,"n_cols":9,"rows_kept":33,"cut":false,"hidden":false,"merged":[[1,4,1,6]]}
[]
[null,"Registro spese",null,null,"N.B.: per aggiungere una riga al Registro è sufficiente posizionarsi al fondo (sotto la linea blu) digitare il contenuto di una cella e premere Invio. Dopo una modifica, per aggiornare sia il Registro che la Dashboard, cliccare sul pulsante Aggiorna qui a fianco",null,null,null,"< vai alla dashboard"]
[null,null,"N.B.: l'anno viene visualizzato in automatico una volta inserita la data","N.B.: per un miglior utilizzo dei filtri nella Dashboard si consiglia di riportare ogni piattaforma sempre nello stesso modo. Ad esempio scrivere sempre Xbox One e non altre abbreviazioni tipo XOne, X1, etc.",null,null,"N.B.: Selezionare una delle voci dal menu a tendina. Le voci \"Spesa\" sono da usare quando si compra o si prevede di comprare. Le voci \"Incasso\" quando si rivende o si prevede di rivendere qualcosa, ad esempio un gioco usato"]
[]
[null,"data","anno","piattaforma","gioco/periferica/servizio","importo","tipo di importo","negozio","nota"]
[null,"2014-01-02",{"$f":"YEAR(tblSpese[[#This Row],[data]])","v":2014},"Xbox One","Sunset Overdrive",49,"Spesa sostenuta","Amazon","Tutti i dati qui riportati sono solo di esempio. Dopo aver compreso il funzionamento del file, i dati d'esempio e le note esplicative in rosso possono essere eliminati"]
[null,"2014-02-02",{"$f":"YEAR(tblSpese[[#This Row],[data]])","v":2014},"PlayStation 4","Bloodborne",39,"Spesa sostenuta","Amazon"]
[null,"2014-03-02",{"$f":"YEAR(tblSpese[[#This Row],[data]])","v":2014},"Xbox One","Halo MCC",62,"Spesa sostenuta","Amazon"]
[null,"2014-03-04",{"$f":"YEAR(tblSpese[[#This Row],[data]])","v":2014},"Xbox One","Forza MotorSport 5",29,"Spesa sostenuta","GameStop"]
[null,"2014-03-04",{"$f":"YEAR(tblSpese[[#This Row],[data]])","v":2014},"Wii","Wii Sports",-10,"Incasso ottenuto","GameStop","Nel registro è anche possibile segnare la vendita di un gioco usato; basta registrare con segno meno l'importo previsto o effettivamente ottenuto vendendolo. In questo modo, il totale complessivo che leggerete nella Dashboard non sarà altro che la spesa totale al netto degli incassi derivanti dalla vendita dei giochi usati."]
[null,"2014-03-06",{"$f":"YEAR(tblSpese[[#This Row],[data]])","v":2014},"Xbox One","Ryse Son of Rome",21,"Spesa sostenuta","GameStop"]
[null,"2014-04-01",{"$f":"YEAR(tblSpese[[#This Row],[data]])","v":2014},"Xbox One","Titanfall",54,"Spesa sostenuta","GameStop"]
[null,"2014-04-01",{"$f":"YEAR(tblSpese[[#This Row],[data]])","v":2014},"PlayStation 4","Driveclub",12,"Spesa sostenuta","Mediaworld"]
[null,"2014-05-01",{"$f":"YEAR(tblSpese[[#This Row],[data]])","v":2014},"PlayStation 4","Infamous",12,"Spesa sostenuta","Amici del Gioco"]
[null,"2014-06-01",{"$f":"YEAR(tblSpese[[#This Row],[data]])","v":2014},"PlayStation 4","Fifa 15",60,"Spesa sostenuta","Amici del Gioco"]
[null,"2014-07-02",{"$f":"YEAR(tblSpese[[#This Row],[data]])","v":2014},"WiiU","New Super Mario Bros. U",29,"Spesa sostenuta","Amici del Gioco"]
[null,"2014-08-02",{"$f":"YEAR(tblSpese[[#This Row],[data]])","v":2014},"WiiU","Lego Marvel Superheroes",39,"Spesa sostenuta","Amici del Gioco"]
[null,"2014-09-02",{"$f":"YEAR(tblSpese[[#This Row],[data]])","v":2014},"PlayStation 4","The Order 1886",62,"Spesa sostenuta","Videogamers"]
[null,"2014-10-04",{"$f":"YEAR(tblSpese[[#This Row],[data]])","v":2014},"PlayStation 3","The Last of Us",29,"Spesa sostenuta","Videogamers"]
[null,"2014-11-04",{"$f":"YEAR(tblSpese[[#This Row],[data]])","v":2014},"PlayStation 4","Destiny",42,"Spesa sostenuta","Videogamers"]
[null,"2014-12-06",{"$f":"YEAR(tblSpese[[#This Row],[data]])","v":2014},"Xbox 360","Gears of War",21,"Spesa sostenuta","Videogamers"]
[null,"2014-05-03",{"$f":"YEAR(tblSpese[[#This Row],[data]])","v":2014},"Xbox 360","Gears of War 2",54,"Spesa sostenuta","Game Generation"]
[null,"2014-06-01",{"$f":"YEAR(tblSpese[[#This Row],[data]])","v":2014},"Xbox 360","Gears of War 3",12,"Spesa sostenuta","Game Generation"]
[null,"2015-08-01",{"$f":"YEAR(tblSpese[[#This Row],[data]])","v":2015},"Xbox One","Rise of Tomb Raider",60,"Spesa prevista","Game Generation"]
[null,"2015-08-02",{"$f":"YEAR(tblSpese[[#This Row],[data]])","v":2015},"Xbox One","Forza MotorSport 6",60,"Spesa prevista","Game Generation"]
[null,"2015-08-03",{"$f":"YEAR(tblSpese[[#This Row],[data]])","v":2015},"Xbox One","Fable Legends",60,"Spesa prevista","Game Generation"]
[null,"2015-08-04",{"$f":"YEAR(tblSpese[[#This Row],[data]])","v":2015},"Playstation 4","Fifa 15",-5,"Incasso previsto","Mediaworld","Ciò che viene segnato come Incasso previsto o Spesa prevista, se poi si concretizza può essere aggiornato semplicemente cambiando il \"tipo di importo\" rispettivamente, a seconda dei casi, in Incasso ottenuto o Spesa ottenuta. Dopo aver fatto ciò aggiornare il registro!"]
[null,"2015-08-05",{"$f":"YEAR(tblSpese[[#This Row],[data]])","v":2015},"Xbox One","Halo 5 Guardians",60,"Spesa prevista","Mediaworld"]
[null,"2015-08-06",{"$f":"YEAR(tblSpese[[#This Row],[data]])","v":2015},"Playstation 4","Abbonamento PSN",40,"Spesa prevista","Multiplayer.com"]
[null,"2015-08-07",{"$f":"YEAR(tblSpese[[#This Row],[data]])","v":2015},"PC","Batman Arkham Knight",60,"Spesa prevista","Multiplayer.com"]
[null,"2015-09-09",{"$f":"YEAR(tblSpese[[#This Row],[data]])","v":2015},"PC","The Witcher 3 Wild Hunt",42,"Spesa prevista","Multiplayer.com"]
[null,"2015-12-25",{"$f":"YEAR(tblSpese[[#This Row],[data]])","v":2015},"Xbox One","Elite Controller",60,"Spesa prevista","Multiplayer.com"]
[null,"2015-12-27",{"$f":"YEAR(tblSpese[[#This Row],[data]])","v":2015},"Xbox One","Abbonamento Live",50,"Spesa prevista","Amazon"]

{"sheet":"Dati spese personali","index":2,"n_rows":46,"n_cols":3,"rows_kept":46,"cut":false,"hidden":true,"merged":[[4,1,4,12]]}
[]
[null,"Dati spese"]
[]
[]
[null,"La tabella pivot sottostante fornisce l'origine dati per il grafico pivot Spese per i videogiochi nella Dashboard. Qualsiasi modifica può produrre modifiche visive al grafico pivot oppure errori."]
[]
[null,"Etichette di riga","Somma di importo"]
[null,2014]
[null,"gen",49]
[null,"Xbox One",49]
[null,"feb",39]
[null,"PlayStation 4",39]
[null,"mar",102]
[null,"Xbox One",112]
[null,"Wii",-10]
[null,"apr",66]
[null,"Xbox One",54]
[null,"PlayStation 4",12]
[null,"mag",66]
[null,"PlayStation 4",12]
[null,"Xbox 360",54]
[null,"giu",72]
[null,"PlayStation 4",60]
[null,"Xbox 360",12]
[null,"lug",29]
[null,"WiiU",29]
[null,"ago",39]
[null,"WiiU",39]
[null,"set",62]
[null,"PlayStation 4",62]
[null,"ott",29]
[null,"PlayStation 3",29]
[null,"nov",42]
[null,"PlayStation 4",42]
[null,"dic",21]
[null,"Xbox 360",21]
[null,2015]
[null,"ago",335]
[null,"Xbox One",240]
[null,"PlayStation 4",35]
[null,"PC",60]
[null,"set",42]
[null,"PC",42]
[null,"dic",110]
[null,"Xbox One",110]
[null,"Totale complessivo",1103]